Cogmind - Beta 16.1 *** ADVENTURER MODE // 2026.03.27 @ 20:54:37 Player: Sharded of Serpulo Result: Self-destructed Performance ------------- Evolutions (3) 1500 Regions Visited (6) 1200 Robots Destroyed (26) 130 Value Destroyed (551) 551 Prototype IDs (1) 20 Alien Tech Used (0) 0 Bonus (500) 500 TOTAL SCORE: 3901 Bonus ------- Entered DSFs 500 Cogmind --------- Core Integrity 674/700 Matter 71/300 Energy 138/140 System Corruption 0% Temperature Cool (6) Movement Flying (195) Ox2 Location -7/DSF Parts ------- > --- POWER (2) -------- Light Deuterium Engine > --- PROPULSION (6) --- Cesium-ion Thruster > --- UTILITY (3) ------ Small Storage Unit Improved Sensor Array > --- WEAPON (2) ------- Scythe > --- INVENTORY (8) ---- Scrap Suit Improved Heat Sink Improved Sensor Array Improved Sensor Array Improved Sensor Array Hacking Suite Flak Cannon Peak State ------------ > --- POWER ------------ Light Ion Engine Light Deuterium Engine > --- PROPULSION ------- Flight Unit Cesium-ion Thruster Cesium-ion Thruster Cesium-ion Thruster Cesium-ion Thruster > --- UTILITY ---------- Small Storage Unit Improved Sensor Array > --- WEAPON ----------- Flak Cannon Flak Cannon > --- INVENTORY -------- Scrap Suit Improved Sensor Array Improved Sensor Array Improved Sensor Array Hacking Suite Flak Cannon [Rating: 29] Favorites ----------- Power Ion Engine Engine Ion Engine Propulsion Cesium-ion Thruster Treads Light Treads Flight Unit Cesium-ion Thruster Utility Small Storage Unit Device Improved Sensor Array Storage Small Storage Unit Weapon Assault Rifle Ballistic Gun Assault Rifle Ballistic Cannon Flak Cannon Slashing Weapon Scythe Build | -11 -10 -9 -9 -8 -7 -7 ------- Run | Yrd Mat Mat Min Mat Fac DSF Slots Evolved 6 | . . 2 . 2 2 . Power 1 | . . . . 1 . . Propulsion 4 | . . 2 . 1 1 . Utility 1 | . . . . . 1 . Weapon . | . . . . . . . Parts Attached 19 | 6 . 10 . 2 1 . Power 3 | 1 . 1 . 1 . . Engine 3 | 1 . 1 . 1 . . Core . | . . . . . . . Reactor . | . . . . . . . Propulsion 7 | 2 . 5 . . . . Treads 2 | 2 . . . . . . Leg . | . . . . . . . Wheel . | . . . . . . . Hover . | . . . . . . . Flight 5 | . . 5 . . . . Utility 2 | 1 . 1 . . . . Device 1 | . . 1 . . . . Storage 1 | 1 . . . . . . Processor . | . . . . . . . Hackware . | . . . . . . . Protection . | . . . . . . . Artifact . | . . . . . . . Weapon 7 | 2 . 3 . 1 1 . Energy Gun . | . . . . . . . Energy Cannon . | . . . . . . . Ballistic Gun 3 | 2 . 1 . . . . Ballistic Cannon 3 | . . 2 . 1 . . Launcher . | . . . . . . . Special Weapon . | . . . . . . . Impact Weapon . | . . . . . . . Slashing Weapon 1 | . . . . . 1 . Piercing Weapon . | . . . . . . . Special Melee Weapon . | . . . . . . . Unidentified Prototypes 1 | . . 1 . . . . Parts Lost 4 | . . . . 1 . 3 Power . | . . . . . . . Propulsion 4 | . . . . 1 . 3 Utility . | . . . . . . . Weapon . | . . . . . . . Highest Loss Streak 3 | . . . . 1 . 3 To Critical Strikes . | . . . . . . . Average Backups 4 | 1 3 4 7 6 6 7 Power . | . 1 . . . . . Propulsion 1 | . 2 2 1 . . . Utility 1 | . . . 3 4 5 6 Weapon . | . . . 2 1 1 1 Tool/Special . | . . . . . . . Unused Backups 10 | . . 2 1 1 . 6 Power . | . . . . . . . Propulsion 3 | . . 2 . 1 . . Utility 6 | . . . . . . 6 Weapon 1 | . . . 1 . . . Tool/Special . | . . . . . . . Average Slot Usage (%) 80 | . 85 70 88 86 65 69 Engine 11 | . 14 11 11 9 7 7 Treads 16 | . 28 13 . . . . Flight 15 | . . 14 44 44 30 30 Device 3 | . . 2 11 9 7 7 Storage 11 | . 14 11 11 9 7 7 Ballistic Gun 16 | . 28 14 . . . . Ballistic Cannon 4 | . . 2 11 14 7 7 Peak Build Rating 29 | 6 6 25 22 29 25 25 Average Rating 11 | 3 6 10 21 26 24 24 On Entrance 14 | . 6 6 21 22 22 25 Avg Prop Armor Cover (%) . | . . . . . . . Naked Turns . | . . . . . . . Heaviest Build 23 | 13 13 17 15 23 19 19 Greatest Support 40 | 40 40 40 20 29 23 23 Greatest Overweight (x) 1 | . . 1 . . . . Average Overweight (x) . | . . . . . . . Largest Inventory Capacity 8 | 8 8 8 8 8 8 8 Average Capacity 7 | 6 8 8 8 8 8 8 Most Carried 8 | 5 4 8 8 8 8 8 Average Carried 4 | 1 3 4 7 7 7 8 Final Capacity 8 | 8 8 8 8 8 8 8 Final Carried 8 | 1 4 7 8 8 8 8 Class Distribution -------------------- 65% | Mutant 20% | Sprinter 14% | Scientist-Sprinter Dominant Class ---------------- Mutant | -10/Materials Mutant | -9/Materials Sprinter | -9/Mines Scientist-Sprinter | -8/Materials Scientist-Sprinter | -7/Factory Scientist-Sprinter | -7/DSF Resources | -11 -10 -9 -9 -8 -7 -7 ----------- Run | Yrd Mat Mat Min Mat Fac DSF Matter Collected 553 | 180 142 40 130 5 56 . Remotely . | . . . . . . . Salvage Created 612 | . 259 190 65 42 56 . Parts 42 | . 12 13 7 2 8 . Haulers Intercepted 2 | . . 2 . . . . Recyclers Shooed 1 | . 1 . . . . . Parts Field Recycled . | . . . . . . . Retrieved Matter . | . . . . . . . Parts Self-Destructed . | . . . . . . . Prevented . | . . . . . . . Parts Restored . | . . . . . . . Kills | -11 -10 -9 -9 -8 -7 -7 ------- Run | Yrd Mat Mat Min Mat Fac DSF Combat Hostiles Destroyed 13 | . 6 2 3 2 . . Guns 7 | . 6 1 . . . . Cannons 6 | . . 1 3 2 . . Classes Destroyed 11 | . 3 2 2 3 1 . Worker 2 | . . 1 . . 1 . Builder 2 | . . . . . 2 . Tunneler 2 | . . . 2 . . . Hauler 2 | . . 2 . . . . Operator 1 | . . . . 1 . . Watcher 4 | . 2 2 . . . . Swarmer 2 | . 2 . . . . . Grunt 8 | . 4 2 2 . . . Brawler 1 | . . . 1 . . . Sentry 1 | . . . . 1 . . Hunter 1 | . . . . 1 . . Best Kill Streak 11 | . 5 5 10 11 3 . Combat Bots Only 3 | . 2 1 3 1 . . Max Kills in Single Turn 1 | . 1 1 1 1 1 . Gunslinging . | . . . . . . . Exploded . | . . . . . . . Melee . | . . . . . . . Uniques/NPCs Destroyed . | . . . . . . . Combat | -11 -10 -9 -9 -8 -7 -7 -------- Run | Yrd Mat Mat Min Mat Fac DSF Hostile Shots Fired 111 | . 19 28 14 39 . 11 Missed 50 | . 6 15 6 20 . 3 Hits 61 | . 13 13 8 19 . 8 Melee 2 | . . . . . . 2 Projectile 59 | . 13 13 8 19 . 6 Critical Strikes 2 | . 1 . . . . 1 Damage Taken 538 | . 105 99 66 185 . 83 Core 93 | . 14 13 16 24 . 26 Absorbed by Shields . | . . . . . . . Ignored by Resistances 167 | . 34 36 20 52 . 25 Core Remaining (%) 95 | 100 94 . 92 95 . . Volleys Fired 58 | . 21 16 12 9 . . Largest 2 | . 2 2 1 2 . . Hottest 74 | . 40 74 37 74 . . Shots Fired 96 | . 42 24 12 18 . . Gun 56 | . 42 14 . . . . Cannon 40 | . . 10 12 18 . . Launcher . | . . . . . . . Special . | . . . . . . . Kinetic 96 | . 42 24 12 18 . . Thermal . | . . . . . . . Explosive . | . . . . . . . Electromagnetic . | . . . . . . . Robot Hit Streak 17 | . 17 10 8 13 . . Robot Miss Streak 5 | . 1 4 3 5 . . Penetration Max . | . . . . . . . Secondary Targets 1 | . . 1 . . . . Max Gunslinging Chain 1 | . . 1 . . . . Shots Hit Robots 81 | . 30 18 12 17 3 1 Core Hits 68 | . 17 18 13 19 1 . Critical Kills 1 | . 1 . . . . . Critical Parts Destroyed . | . . . . . . . Critical Strikes 1 | . 1 . . . . . Destroy 1 | . 1 . . . . . Melee Attacks 4 | . . . . . 3 1 Impact . | . . . . . . . Slashing 4 | . . . . . 3 1 Piercing . | . . . . . . . Sneak Attacks 4 | . . . . . 3 1 Combat Hostiles . | . . . . . . . Follow-up Attacks . | . . . . . . . Damage Inflicted 1507 | . 300 320 317 292 211 67 Guns 398 | . 300 98 . . . . Cannons 831 | . . 222 317 292 . . Explosions . | . . . . . . . Melee 278 | . . . . . 211 67 Ramming . | . . . . . . . Kinetic 1229 | . 300 320 317 292 . . Thermal . | . . . . . . . Explosive . | . . . . . . . Electromagnetic . | . . . . . . . Impact . | . . . . . . . Slashing 278 | . . . . . 211 67 Piercing . | . . . . . . . Highest Corruption . | . . . . . . . Average Corruption . | . . . . . . . Corruption Purged . | . . . . . . . Corruption Blocked . | . . . . . . . Overload Shots . | . . . . . . . Overflow Damage 58 | . . . . . 58 . Projectiles . | . . . . . . . Explosions . | . . . . . . . Melee 58 | . . . . . 58 . Knockbacks 25 | . . 6 10 9 . . Impact . | . . . . . . . Kinetic 24 | . . 6 10 8 . . Secondary 1 | . . . . 1 . . Self-Inflicted Damage . | . . . . . . . Shots . | . . . . . . . Rammed . | . . . . . . . Targets Rammed . | . . . . . . . Kicked . | . . . . . . . Crushed . | . . . . . . . Highest Temperature 170 | . 27 15 24 170 . . Average Temperature 46 | . 12 5 11 73 . . Received Heat Transfer 255 | . 84 60 48 63 . . Siege Activations . | . . . . . . . Martial Activations . | . . . . . . . Shielding Activations . | . . . . . . . Robots Disrupted . | . . . . . . . Combat Hostiles . | . . . . . . . Robots Corrupted . | . . . . . . . Combat Hostiles . | . . . . . . . Parts Fried . | . . . . . . . Impact Corruptions . | . . . . . . . Robots Melted . | . . . . . . . Combat Hostiles . | . . . . . . . Parts Melted . | . . . . . . . Heat Transferred . | . . . . . . . Parts Sabotaged . | . . . . . . . Parts Stolen . | . . . . . . . Parts Stripped . | . . . . . . . Power Chain Reactions . | . . . . . . . Alert | -11 -10 -9 -9 -8 -7 -7 ------- Run | Yrd Mat Mat Min Mat Fac DSF Maximum Alert Level . | . . . . . . . Low Security (%) 100 | 100 100 100 100 100 100 100 Level 1 . | . . . . . . . Level 2 . | . . . . . . . Level 3 . | . . . . . . . Level 4 . | . . . . . . . Level 5 . | . . . . . . . High Security . | . . . . . . . Max Security . | . . . . . . . Peak Influence 92 | . 92 24 74 83 36 15 Initial 27 | . . 6 4 21 27 15 Average 30 | . 45 6 51 32 26 13 Influence Increases 482 | . 198 73 80 112 19 . Destroy 0b10 Robot/C 260 | . 120 40 60 40 . . Destroy 0b10 Robot/NC 65 | . 10 25 10 5 15 . Destroy Leader 72 | . 34 8 10 20 . . Successful Hack 25 | . 19 . . 2 4 . Lose Combat Pursuer 60 | . 15 . . 45 . . Influence Decreases 482 | . 180 75 32 103 66 26 Entered New Map 124 | . . 12 12 43 46 11 Time Decay 333 | . 180 63 20 50 20 . Lost Part 25 | . . . . 10 . 15 Squads Dispatched 5 | . 1 1 . 1 1 1 Investigation 2 | . 1 . . . 1 . Extermination . | . . . . . . . Reinforcement 2 | . . 1 . . . 1 Assault . | . . . . . . . Garrison 1 | . . . . 1 . . Intercept . | . . . . . . . Searches Triggered . | . . . . . . . Construction Impeded . | . . . . . . . Haulers Reinforced . | . . . . . . . Active Scanning Responses . | . . . . . . . Cargo Convoy Interrupts . | . . . . . . . Stealth | -11 -10 -9 -9 -8 -7 -7 --------- Run | Yrd Mat Mat Min Mat Fac DSF Distress Signals 5 | . 1 1 . 3 . . Communications Jammed . | . . . . . . . Distress Signals . | . . . . . . . Times Spotted 47 | . 10 15 3 14 . 5 Peak Tracking Total 10 | . 3 9 3 10 . 5 Tactical Retreats 2 | . 1 . . 1 . . Traps | -11 -10 -9 -9 -8 -7 -7 ------- Run | Yrd Mat Mat Min Mat Fac DSF Traps Triggered 3 | . 1 1 . . . 1 Indirectly . | . . . . . . . Trap Hack Attempts . | . . . . . . . Triggered . | . . . . . . . Disarmed . | . . . . . . . Reprogrammed . | . . . . . . . Reused . | . . . . . . . Traps Extracted . | . . . . . . . Installed . | . . . . . . . Triggered . | . . . . . . . Machines | -11 -10 -9 -9 -8 -7 -7 ---------- Run | Yrd Mat Mat Min Mat Fac DSF Machines Disabled . | . . . . . . . Max in Single Turn . | . . . . . . . Machines Repaired . | . . . . . . . Machines Dismantled . | . . . . . . . Machines Sabotaged . | . . . . . . . Overloaded Fab Kills . | . . . . . . . Hacking | -11 -10 -9 -9 -8 -7 -7 --------- Run | Yrd Mat Mat Min Mat Fac DSF Machines Accessed 11 | . 5 . . 3 3 . Terminals 7 | . 4 . . 2 1 . Fabricators 1 | . . . . . 1 . Repair Stations 1 | . . . . . 1 . Recycling Units 1 | . 1 . . . . . Scanalyzers 1 | . . . . 1 . . Garrison Access . | . . . . . . . Total Hacks 21 | . 10 . . 6 5 . Successful 8 | . 2 . . 5 1 . Failed 13 | . 8 . . 1 4 . Catastrophic 2 | . . . . . 2 . Database Lockouts . | . . . . . . . Manual 9 | . 7 . . 2 . . Terminals 12 | . 8 . . 2 2 . Fabricators 1 | . . . . . 1 . Repair Stations 2 | . . . . . 2 . Recycling Units 2 | . 2 . . . . . Scanalyzers 4 | . . . . 4 . . Garrison Access . | . . . . . . . Terminal Hacks 4 | . 2 . . 1 1 . Open DSF 1 | . . . . . 1 . Branch Access Points 1 | . 1 . . . . . Terminal Index 1 | . . . . 1 . . Zone Layout 1 | . 1 . . . . . Fabricator Hacks . | . . . . . . . Repair Station Hacks . | . . . . . . . Recycling Unit Hacks . | . . . . . . . Scanalyzer 4 | . . . . 4 . . Retrieve Study 4 | . . . . 4 . . Garrison Access Hacks . | . . . . . . . Unauthorized Hacks . | . . . . . . . Terminals . | . . . . . . . Fabricators . | . . . . . . . Repair Stations . | . . . . . . . Recycling Units . | . . . . . . . Scanalyzers . | . . . . . . . Garrison Access . | . . . . . . . Data Cores Recovered 1 | . . . . 1 . . Used 1 | . . . . 1 . . Hacking Detections 11 | . 5 . . 3 3 . Full Trace Events 2 | . 1 . . . 1 . Feedback Events . | . . . . . . . Feedback Blocked . | . . . . . . . Robot Schematics Acquired . | . . . . . . . Robots Built . | . . . . . . . Authchips . | . . . . . . . Time . | . . . . . . . Total Robot Build Rating . | . . . . . . . Part Schematics Acquired . | . . . . . . . Parts Built . | . . . . . . . Authchips . | . . . . . . . Time . | . . . . . . . Total Part Build Rating . | . . . . . . . Part Studies Acquired 4 | . . . . 4 . . Parts Repaired . | . . . . . . . Time . | . . . . . . . Parts Recycled . | . . . . . . . Recycled Matter . | . . . . . . . Retrieved Matter . | . . . . . . . Retrieved Components . | . . . . . . . Parts Scanalyzed . | . . . . . . . Part Schematics Acquired . | . . . . . . . Parts Damaged . | . . . . . . . Bothacking | -11 -10 -9 -9 -8 -7 -7 ------------ Run | Yrd Mat Mat Min Mat Fac DSF Used RIF Installer . | . . . . . . . Robots Hacked . | . . . . . . . Non-combat . | . . . . . . . Combat . | . . . . . . . Robot Hacks Applied . | . . . . . . . Relay Couplers Released . | . . . . . . . Fabnet Peak Effective % . | . . . . . . . Robots Rewired . | . . . . . . . Allies Hacked . | . . . . . . . Hacks Repelled . | . . . . . . . Allies | -11 -10 -9 -9 -8 -7 -7 -------- Run | Yrd Mat Mat Min Mat Fac DSF Total Allies . | . . . . . . . Largest Group . | . . . . . . . Highest-Rated Group . | . . . . . . . Highest-Rated Ally . | . . . . . . . Total Orders . | . . . . . . . Ally Attacks . | . . . . . . . Total Damage . | . . . . . . . Kills . | . . . . . . . Allies Corrupted . | . . . . . . . Allies Melted . | . . . . . . . Intel | -11 -10 -9 -9 -8 -7 -7 ------- Run | Yrd Mat Mat Min Mat Fac DSF Active Infowar (turns) 286 | . . 47 52 117 41 29 Sensors 286 | . . 47 52 117 41 29 Robot Analysis Total . | . . . . . . . Derelict Logs Recovered 1 | . . . 1 . . . Drone Launches . | . . . . . . . Drone Recoveries . | . . . . . . . Exploration | -11 -10 -9 -9 -8 -7 -7 ------------- Run | Yrd Mat Mat Min Mat Fac DSF Turns Passed 887 | 70 387 191 52 117 41 29 Spaces Moved 936 | 40 204 164 100 272 116 40 Core 5 | 5 . . . . . . Treads 294 | 35 204 55 . . . . Legs . | . . . . . . . Wheels . | . . . . . . . Hover . | . . . . . . . Flight 637 | . . 109 100 272 116 40 Fastest Speed 24 | 50 160 26 26 24 27 27 Average Speed 68 | 146 160 71 26 24 27 27 Slowest Speed 160 | 160 160 160 26 27 27 30 Overloaded Moves . | . . . . . . . Propulsion Burnouts . | . . . . . . . Robots Hopped 6 | . . . 1 5 . . Potential Cave-ins . | . . . . . . . Cave-ins Triggered . | . . . . . . . Exploration Rate (%) 25 | 4 47 25 29 24 4 46 Regions Visited 6 Branch Regions 1 Pre-discovered Areas 1 | . . . 1 . . . Known Exits Taken 1 | . . . . . 1 . Unknown Exits Taken 5 | 1 1 1 1 1 . . Scrap Searched 1 | . . . 1 . . . Spaces Dug . | . . . . . . . Terrain Destroyed . | . . . . . . . Melee . | . . . . . . . Projectile . | . . . . . . . AOE . | . . . . . . . Terrain Rammed . | . . . . . . . Walls Destroyed . | . . . . . . . Machines Disabled . | . . . . . . . Actions | -11 -10 -9 -9 -8 -7 -7 --------- Run | Yrd Mat Mat Min Mat Fac DSF Total 1084 | 52 227 217 112 300 120 56 Wait 13 | . . . . 13 . . Move 919 | 39 203 163 97 262 115 40 Hop 5 | . . . 1 4 . . Pick Up 30 | 7 3 14 1 4 1 . Fast Attach 2 | . . 2 . . . . Attach 21 | 6 . 10 . 4 1 . Detach 3 | . . 2 . 1 . . Swap 2 | . . 2 . . . . Drop 12 | . . 8 1 3 . . Fire 58 | . 21 16 12 9 . . Melee 4 | . . . . . 3 1 Ram . | . . . . . . . Kick . | . . . . . . . Crush . | . . . . . . . Escape Stasis 15 | . . . . . . 15 Rewire . | . . . . . . . Trap . | . . . . . . . Miscellaneous . | . . . . . . . Route ------- -11/Scrapyard -10/Materials (discovered 2 exits: [*Mat] / Min) -9/Materials -9/Mines -8/Materials -7/Factory -7/DSF History --------- Turn | Location | Event 4 | -11/Scrapyard | Discovered new exit (range 15) 71 | -11/Scrapyard | Entered Materials 300 | -10/Materials | Build established: Mutant 396 | -10/Materials | Discovered new exit (range 15) 412 | -10/Materials | Identified exit to Mines 458 | -10/Materials | Entered another Materials area 458 | -9/Materials | Evolved 2 slots: Propulsion x2 615 | -9/Materials | Discovered new exit (range 11) 649 | -9/Materials | Entered Mines 677 | -9/Mines | Learned location of Zion (-6) 680 | -9/Mines | Found a Scrap Suit stashed away for nefarious purposes 681 | -9/Mines | Found Scrap Suit 700 | -9/Mines | Discovered new exit (range 4) 701 | -9/Mines | Entered Materials 701 | -8/Materials | Evolved 2 slots: Power x1, Propulsion x1 754 | -8/Materials | Garrison activated, responded to threat 814 | -8/Materials | Discovered new exit (range 16) 818 | -8/Materials | Entered Factory 818 | -7/Factory | Evolved 2 slots: Propulsion x1, Utility x1 855 | -7/Factory | Identified exit to DSF 859 | -7/Factory | Entered DSF 888 | -7/DSF | Self-destructed Last Messages --------------- Field strength at 70. Field strength at 64. Field strength at 58. Field strength at 52. Field strength at 46. Field strength at 40. Field strength at 34. ALERT: Suspicious intruders detected, dispatching Cutter reinforcements to area. Field strength at 28. Field strength at 22. Field strength at 16. Field strength at 10. Field strength at 4. Stasis field depleted. Sneak attack on X-57 Shotgunner. X-57 Shotgunner springs to life. Flak Cannon+ severed. Cesium-ion Thruster+ destroyed. Flight Unit+ destroyed. Map ----- +----------------------------------------------------+ | | | | | | | | | | | | | | | | | | | | | | | | | | | | | ????????????????????????????????????????????????? | | ????????????????????????????????????????????????? | | ????????????????????????????????????????????????? | | ????????????????????????????????????????????????? | | ?????????""#????????????????????????????????????? | | ?????????#"#????????????????????????????????????? | | ??????####"##???????#########???????????????????? | | ??????#"""""######### /// #???????????????????? | | ??????#"""""## # # /// #???????????????????? | | ???#"##"" #???????????????????? | | ???#""""" c c #???????????????????? | | ????###"" ## # ### @ ###???????????????????? | | ??????### ]### # #?# #?????????????????????? | | ???????## ##########== ????????????????????? | | ???????#! !!#??????#== #???????????????????? | | ???????#! !!#??????#== #???????????????????? | | ???????## ###??????### ###???????????????????? | | ???????# #????????[ !?????????????????????? | | ???????# #????????[ !!????????????????????? | | ???????# #????????[ !!????????????????????? | | ??????### ###???????## ###???????????????????? | | ??????# #??????????# #?????????????????????? | | ??????# ##!!!#!!!#?H a?????????????????????? | | ??????#!! ?????????????????????? | | ??????#!! ?????????????????????? | | ??????#!! ?????????????????????? | | ??????# #" #!!!## a?????????????????????? | | ??????# ## #??!#???????????????????????????? | | ??????######?####???????????????????????????????? | | ????????????????????????????????????????????????? | | ????????????????????????????????????????????????? | | ????????????????????????????????????????????????? | | ????????????????????????????????????????????????? | | ????????????????????????????????????????????????? | | ????????????????????????????????????????????????? | | ????????????????????????????????????????????????? | +----------------------------------------------------+ Best States ------------- Heat Dissipation 34 Energy Generation 19 Energy Capacity 250 Matter Stores 278 Matter Capacity 300 Sight Range 16 Robot Scan Range 15 Terrain Scan Density 10 Resistance: KI 20 Resistance: TH 20 Resistance: EX 20 Resistance: EM 20 Resistance: I 20 Resistance: S 20 Resistance: P 20 Evasion (%) 65 Recoil Reduction 2 Offensive Hacking 10 Item Schematics ----------------- None Robot Schematics ------------------ None Fabricated ------------ Nothing Repaired ---------- Nothing Studied --------- Cesium-ion Thruster | -8/Materials | Hacked Flak Cannon | -8/Materials | Hacked Flight Unit | -8/Materials | Hacked Lgt. Deuterium Engine | -8/Materials | Hacked Alien Tech Used ----------------- None Achievements -------------- None Challenges ------------ None Game ------ Seed TargetingCoolantFlail Manual? 0 Play Time 00:16:59 Cumulative 24.6 hours Start 2026.03.27 @ 20:38:17 End 2026.03.27 @ 20:54:37 Sessions 1 Manual Loads 0 Difficulty Adventurer Special Mode None Game No. 31 Rogue 0 Adventurer 31 Explorer 0 Win Type - Total 0 Types 0/0/0/0/0/0/0/0/0/0 Lore% 12 Gallery% 22 Achievement% 21 Wizard Run 0 Options --------- Layout 1 ASCII 0 Keyboard 0 Movement Mouse Keybinds 0 Fullscreen 1 Font 32/Tamsyn Map View 50x35 Zoom Use 0% Tactical HUD 0 Map Filters NONE Filters NONE Steam 1 RUN: 4ea6b6dc-38ef-4415-aaf7-3123d2ffe777